fUSD/lending_fUSD_20251220
["ID","MTS","AMOUNT","RATE_DAILY","PERIOD"]
[399255185,1766209841092,-500.0,0.00013699,2]
[399255186,1766209841103,-500.0,0.00013699,2]
[399255187,1766209841118,-500.0,0.00013699,2]
[399255188,1766209841127,-500.0,0.00013699,2]
[399255189,1766209841137,-499.72722483,0.00013699,2]
[399255190,1766209841147,-500.0,0.00013699,2]
[399255191,1766209841158,-500.0,0.00013699,2]
[399255192,1766209841167,-500.0,0.00013699,2]
[399255193,1766209841177,-500.0,0.00013699,2]
[399255194,1766209841186,-500.0,0.00013699,2]
[399255195,1766209841196,-500.0,0.00013699,2]
[399255196,1766209841206,-500.0,0.00013699,2]
[399255197,1766209841217,-500.0,0.00013699,2]
[399255198,1766209841229,-2101.41,0.00013719,2]
[399255199,1766209841239,-200.0,0.00013719,2]
[399255200,1766209841249,-500.0,0.00013719,2]
[399255201,1766209841260,-200.0,0.00013719,2]
[399255202,1766209841270,-30206.05972072,0.00013755,2]
[399255203,1766209841280,-187.17,0.00013769,2]
[399255204,1766209841290,-500.0,0.00013773,2]
[399255205,1766209841299,-165.53185787,0.00013773,2]
[399255206,1766209841308,-500.0,0.00013773,2]
[399255207,1766209841318,-500.0,0.00013773,2]
[399255208,1766209841330,-500.50034776,0.00013773,2]
[399255209,1766209841341,-500.0,0.00013773,2]
[399255210,1766209841352,-500.0,0.00013773,2]
[399255211,1766209841362,-500.0,0.00013773,2]
[399255212,1766209841372,-500.0,0.00013773,2]
[399255213,1766209841382,-500.63598857,0.00013773,2]
[399255214,1766209841391,-500.0,0.00013773,2]
[399255215,1766209841400,-500.0,0.00013773,2]
[399255216,1766209841409,-500.0,0.00013773,2]
[399255217,1766209841418,-500.0,0.00013773,2]
[399255218,1766209841428,-176.6683039,0.00013773,2]
[399255219,1766209841437,-174.74495914,0.00013773,2]
[399255220,1766209841446,-315.42381846,0.00013773,2]
[399255221,1766209841619,-500.0,0.00013773,2]
[399255222,1766209841628,-165.31243658,0.00013773,2]
[399255223,1766209841638,-500.0,0.00013773,2]
[399255224,1766209841647,-160.23016142,0.00013773,2]
[399255225,1766209841656,-500.0,0.00013773,2]
[399255226,1766209841665,-500.0,0.00013773,2]
[399255227,1766209841676,-216.27337885,0.00013773,2]
[399255228,1766209841685,-536.13646338,0.00013773,2]
[399255229,1766209841694,-201.65516925,0.00013773,2]
[399255230,1766209841704,-500.0,0.00013773,2]
[399255231,1766209841713,-179.50290541,0.00013773,2]
[399255232,1766209841722,-500.0,0.00013773,2]
[399255233,1766209841731,-500.0,0.00013773,2]
[399255234,1766209841740,-168.59999571,0.00013773,2]
[399255235,1766209841749,-165.7973653,0.00013773,2]
[399255236,1766209841758,-500.0,0.00013773,2]
[399255237,1766209841767,-500.0,0.00013773,2]
[399255238,1766209841777,-500.0,0.00013773,2]
[399255239,1766209841786,-500.0,0.00013773,2]
[399255240,1766209841795,-500.0,0.00013773,2]
[399255241,1766209841805,-500.0,0.00013773,2]
[399255242,1766209841814,-38722.0447607,0.00013811,2]
[399255243,1766209841823,-166.66,0.00013836,2]
[399255244,1766209841833,-166.66,0.00013973,2]
[399255245,1766209841842,-150.0,0.00013977,2]
[399255246,1766209841851,-2101.41,0.00013993,2]
[399255247,1766209841860,-366.77,0.00014023,2]
[399255248,1766209841870,-1600.0,0.0001404,2]
[399255249,1766209841880,-166.66,0.0001411,2]
[399255250,1766209841889,-500.0,0.00014244,2]
[399255251,1766209841899,-150.0,0.00014244,2]
[399255252,1766209841908,-498.0,0.00014244,2]
[399255253,1766209841917,-150.0,0.00014244,2]
[399255254,1766209841927,-1054.0,0.00014244,2]
[399255255,1766209841936,-500.0,0.00014244,2]
[399255256,1766209841946,-150.97899754,0.00014244,2]
[399255257,1766209841956,-500.0,0.00014244,2]
[399255258,1766209841965,-150.0,0.00014244,2]
[399255259,1766209841975,-150.0,0.00014244,2]
[399255260,1766209841984,-500.0,0.00014244,2]
[399255261,1766209841994,-500.0,0.00014244,2]
[399255262,1766209842003,-150.0,0.00014244,2]
[399255263,1766209842012,-150.0,0.00014244,2]
[399255264,1766209842022,-150.0,0.00014244,2]
[399255265,1766209842031,-150.0,0.00014244,2]
[399255266,1766209842041,-150.0,0.00014244,2]
[399255267,1766209842050,-150.0,0.00014244,2]
[399255268,1766209842059,-500.0,0.00014244,2]
[399255269,1766209842069,-500.0,0.00014244,2]
[399255270,1766209842078,-494.0,0.00014244,2]
[399255271,1766209842088,-729.0,0.00014244,2]
[399255272,1766209842097,-150.0,0.00014244,2]
[399255273,1766209842108,-500.0,0.00014244,2]
[399255274,1766209842118,-150.0,0.00014244,2]
[399255275,1766209842127,-150.0,0.00014244,2]
[399255276,1766209842137,-150.0,0.00014244,2]
[399255277,1766209842147,-150.0,0.00014244,2]
[399255278,1766209842156,-500.0,0.00014244,2]
[399255279,1766209842166,-500.0,0.00014244,2]
[399255280,1766209842176,-150.0,0.00014244,2]
[399255281,1766209842186,-151.21834691,0.00014244,2]
[399255282,1766209842195,-500.0,0.00014244,2]
[399255283,1766209842204,-150.0,0.00014244,2]
[399255284,1766209842214,-500.0,0.00014244,2]
[399255285,1766209842225,-150.0,0.00014244,2]
[399255286,1766209842235,-500.0,0.00014244,2]
[399255287,1766209842246,-500.0,0.00014244,2]
[399255288,1766209842257,-150.0,0.00014244,2]
[399255289,1766209842269,-166.66,0.00014247,2]
[399255290,1766209842278,-207.4,0.00014266,2]
[399255291,1766209842289,-2101.41,0.00014267,2]
[399255292,1766209842301,-200.0,0.00014267,2]
[399255293,1766209842312,-500.0,0.00014267,2]
[399255294,1766209842323,-200.0,0.00014267,2]
[399255295,1766209842333,-1000.78461254,0.00014321,2]
[399255296,1766209842343,-572.75082077,0.00014321,2]
[399255297,1766209842355,-1000.0,0.00014321,2]
[399255298,1766209842364,-1001.90897722,0.00014321,2]
[399255299,1766209842373,-535.09556247,0.00014321,2]
[399255300,1766209842383,-1135.18911943,0.00014321,2]
[399255301,1766209842394,-500.48342927,0.00014321,2]
[399255302,1766209842404,-1000.0,0.00014321,2]
[399255303,1766209842414,-483.93215772,0.00014321,2]
[399255304,1766209842423,-1000.0,0.00014321,2]
[399255305,1766209842432,-1000.0,0.00014321,2]
[399255306,1766209842441,-627.27365114,0.00014321,2]
[399255307,1766209842449,-711.67995912,0.00014321,2]
[399255308,1766209842459,-594.53896978,0.00014321,2]
[399255309,1766209842468,-1000.0,0.00014321,2]
[399255310,1766209842479,-1000.0,0.00014321,2]
[399255311,1766209842488,-1000.0,0.00014321,2]
[399255312,1766209842499,-1000.0,0.00014321,2]
[399255313,1766209842508,-1000.0,0.00014321,2]
[399255314,1766209842518,-1000.0,0.00014321,2]
[399255315,1766209842527,-1000.0,0.00014321,2]
[399255316,1766209842536,-1000.0,0.00014321,2]
[399255317,1766209842545,-1002.93994495,0.00014321,2]
[399255318,1766209842555,-1000.0,0.00014321,2]
[399255319,1766209842564,-150.0,0.00014381,2]
[399255320,1766209842574,-498.0,0.00014381,2]
[399255321,1766209842583,-500.0,0.00014381,2]
[399255322,1766209842592,-150.0,0.00014381,2]
[399255323,1766209842601,-1054.0,0.00014381,2]
[399255324,1766209842611,-500.0,0.00014381,2]
[399255325,1766209842620,-500.0,0.00014381,2]
[399255326,1766209842630,-150.0,0.00014381,2]
[399255327,1766209842639,-150.0,0.00014381,2]
[399255328,1766209842651,-500.0,0.00014381,2]
[399255329,1766209842661,-500.0,0.00014381,2]
[399255330,1766209842670,-150.0,0.00014381,2]
[399255331,1766209842679,-150.0,0.00014381,2]
[399255332,1766209842689,-150.0,0.00014381,2]
[399255333,1766209842701,-150.0,0.00014381,2]
[399255334,1766209842711,-150.0,0.00014381,2]
[399255335,1766209842721,-150.29349305,0.00014381,2]
[399255336,1766209842730,-500.0,0.00014381,2]
[399255337,1766209842739,-500.0,0.00014381,2]
[399255338,1766209842749,-494.0,0.00014381,2]
[399255339,1766209842758,-729.0,0.00014381,2]
[399255340,1766209842768,-150.0,0.00014381,2]
[399255341,1766209842777,-500.0,0.00014381,2]
[399255342,1766209842787,-150.0,0.00014381,2]
[399255343,1766209842796,-150.0,0.00014381,2]
[399255344,1766209842805,-150.0,0.00014381,2]
[399255345,1766209842815,-500.0,0.00014381,2]
[399255346,1766209842824,-500.0,0.00014381,2]
[399255347,1766209842833,-203.74835527,0.00014381,2]
[399255348,1766209842843,-500.0,0.00014381,2]
[399255349,1766209842852,-150.0,0.00014381,2]
[399255350,1766209842862,-500.0,0.00014381,2]
[399255351,1766209842871,-150.0,0.00014381,2]
[399255352,1766209842879,-500.0,0.00014381,2]
[399255353,1766209842889,-500.0,0.00014381,2]
[399255354,1766209842898,-201.2765323,0.00014381,2]
[399255355,1766209842908,-166.66,0.00014384,2]
[399255356,1766209842917,-30206.05972072,0.00014384,2]
[399255357,1766209842926,-38722.0447607,0.00014428,2]
[399255358,1766209842936,-150.0,0.00014518,2]
[399255359,1766209842945,-498.0,0.00014518,2]
[399255360,1766209842954,-500.0,0.00014518,2]
[399255361,1766209842963,-200.0,0.00014518,2]
[399255363,1766209842973,-1054.0,0.00014518,2]
[399255365,1766209842983,-501.70181775,0.00014518,2]
[399255367,1766209842993,-500.0,0.00014518,2]
[399255370,1766209843002,-150.0,0.00014518,2]
[399255372,1766209843012,-231.95831861,0.00014518,2]
[399255374,1766209843022,-500.0,0.00014518,2]
[399255375,1766209843031,-500.0,0.00014518,2]
[399255376,1766209843041,-150.0,0.00014518,2]
[399255377,1766209843051,-150.0,0.00014518,2]
[399255378,1766209843064,-150.0,0.00014518,2]
[399255379,1766209843075,-164.7217925,0.00014518,2]
[399255380,1766209843084,-150.0,0.00014518,2]
[399255381,1766209843094,-500.0,0.00014518,2]
[399255382,1766209843104,-250.62704032,0.00014518,2]
[399255383,1766209843120,-494.0,0.00014518,2]
[399255384,1766209843129,-729.0,0.00014518,2]
[399255385,1766209843139,-150.0,0.00014518,2]
[399255386,1766209843149,-500.0,0.00014518,2]
[399255387,1766209843158,-150.0,0.00014518,2]
[399255389,1766209843167,-150.0,0.00014518,2]
[399255391,1766209843177,-150.0,0.00014518,2]
[399255393,1766209843187,-500.0,0.00014518,2]
[399255394,1766209843196,-500.0,0.00014518,2]
[399255395,1766209843206,-230.7089659,0.00014518,2]
[399255396,1766209843215,-150.0,0.00014518,2]
[399255397,1766209843224,-500.0,0.00014518,2]
[399255398,1766209843234,-256.61900573,0.00014518,2]
[399255399,1766209843242,-500.0,0.00014518,2]
[399255400,1766209843251,-467.42824898,0.00014518,2]
[399255402,1766209843260,-2101.41,0.00014541,2]
[399255403,1766209843270,-515.04736606,0.00014594,2]
[399255404,1766209843280,-150.0,0.00014655,2]
[399255405,1766209843289,-498.0,0.00014655,2]
[399255406,1766209843299,-500.0,0.00014655,2]
[399255408,1766209843315,-1054.0,0.00014655,2]
[399255410,1766209843324,-150.0,0.00014655,2]
[399255411,1766209843341,-500.0,0.00014655,2]
[399255412,1766209843354,-494.0,0.00014655,2]
[399255413,1766209843366,-729.0,0.00014655,2]
[399255414,1766209843376,-250.0,0.00014655,2]
[399255415,1766209843386,-500.0,0.00014655,2]
[399255416,1766209843397,-150.0,0.00014655,2]
[399255417,1766209843406,-150.0,0.00014655,2]
[399255418,1766209843415,-150.0,0.00014655,2]
[399255419,1766209843424,-500.0,0.00014655,2]
[399255420,1766209843433,-500.0,0.00014655,2]
[399255421,1766209843443,-151.61208378,0.00014655,2]
[399255422,1766209843452,-151.31035432,0.00014655,2]
[399255423,1766209843461,-344.17176914,0.00014655,2]
[399255424,1766209843470,-1000.0,0.0001467,2]
[399255425,1766209843479,-473.98937354,0.00014705,2]
[399255426,1766209843488,-500.0,0.00014718,2]
[399255427,1766209843497,-500.0,0.00014729,2]
[399255428,1766209843506,-182.01458536,0.00014792,2]
[399255429,1766209843515,-498.0,0.00014792,2]
[399255430,1766209843524,-500.0,0.00014792,2]
[399255431,1766209843533,-1054.0,0.00014792,2]
[399255432,1766209843542,-500.0,0.00014792,2]
[399255433,1766209843551,-494.0,0.00014792,2]
[399255434,1766209843560,-729.0,0.00014792,2]
[399255435,1766209843570,-500.0,0.00014792,2]
[399255436,1766209843582,-150.0,0.00014792,2]
[399255437,1766209843591,-150.0,0.00014792,2]
[399255438,1766209843600,-500.0,0.00014792,2]
[399255439,1766209843610,-150.0,0.00014792,2]
[399255440,1766209843620,-500.0,0.00014792,2]
[399255441,1766209843630,-150.0,0.00014794,2]
[399255442,1766209843639,-162.0,0.00014801,2]
[399255443,1766209843648,-366.77,0.00014802,2]
[399255444,1766209843660,-2101.41,0.00014815,2]
[399255445,1766209843670,-200.0,0.00014815,2]
[399255446,1766209843679,-500.0,0.00014815,2]
[399255447,1766209843690,-200.0,0.00014815,2]
[399255448,1766209843699,-1001.91769362,0.00014868,2]
[399255449,1766209843708,-1500.0,0.00014868,2]
[399255450,1766209843718,-1500.0,0.00014868,2]
[399255451,1766209843727,-1502.00400434,0.00014868,2]
[399255452,1766209843737,-1501.18432329,0.00014868,2]
[399255453,1766209843746,-1500.0,0.00014868,2]
[399255454,1766209843755,-1001.58945381,0.00014868,2]
[399255455,1766209843764,-1503.97714891,0.00014868,2]
[399255456,1766209843773,-365.94030489,0.00014868,2]
[399255457,1766209843782,-1500.0,0.00014868,2]
[399255458,1766209843792,-1501.51415398,0.00014868,2]
[399255459,1766209843801,-1500.0,0.00014868,2]
[399255460,1766209843810,-1393.70965969,0.00014868,2]
[399255461,1766209843819,-498.0,0.00014929,2]
[399255462,1766209843828,-500.0,0.00014929,2]
[399255463,1766209843837,-1054.0,0.00014929,2]
[399255464,1766209843846,-500.0,0.00014929,2]
[399255465,1766209843855,-494.0,0.00014929,2]
[399255466,1766209843864,-729.0,0.00014929,2]
[399255467,1766209843873,-500.0,0.00014929,2]
[399255468,1766209843883,-250.0,0.00014929,2]
[399255469,1766209843892,-250.0,0.00014929,2]
[399255470,1766209843901,-500.0,0.00014929,2]
[399255471,1766209843911,-250.0,0.00014929,2]
[399255472,1766209843920,-500.0,0.00014929,2]
[399255473,1766209843929,-150.0,0.00014931,2]
[399255474,1766209843939,-250.0,0.00014973,2]
[399255475,1766209843948,-30206.05972072,0.00015013,2]
[399255476,1766209843957,-38722.0447607,0.00015046,2]
[399255477,1766209843966,-498.0,0.00015066,2]
[399255478,1766209844022,-500.0,0.00015066,2]
[399255479,1766209844032,-1054.0,0.00015066,2]
[399255480,1766209844041,-500.0,0.00015066,2]
[399255481,1766209844050,-494.0,0.00015066,2]
[399255482,1766209844059,-729.0,0.00015066,2]
[399255483,1766209844068,-500.0,0.00015066,2]
[399255484,1766209844078,-500.0,0.00015066,2]
[399255485,1766209844087,-500.0,0.00015066,2]
[399255486,1766209844096,-153.22066729,0.00015068,2]
[399255487,1766209844105,-151.90726099,0.00015068,2]
[399255488,1766209844117,-2101.41,0.00015089,2]
[399255489,1766209844126,-498.0,0.00015203,2]
[399255490,1766209844135,-500.0,0.00015203,2]
[399255491,1766209844145,-1054.0,0.00015203,2]
[399255492,1766209844154,-500.0,0.00015203,2]
[399255493,1766209844165,-494.0,0.00015203,2]
[399255494,1766209844177,-729.0,0.00015203,2]
[399255495,1766209844193,-500.0,0.00015203,2]
[399255496,1766209844202,-500.0,0.00015203,2]
[399255497,1766209844211,-500.0,0.00015203,2]
[399255498,1766209844220,-158.48329942,0.00015288,2]
[399255499,1766209844229,-155.64705311,0.00015288,2]
[399255500,1766209844238,-160.33063992,0.00015288,2]
[399255501,1766209844247,-150.0,0.00015288,2]
[399255502,1766209844256,-157.75435091,0.00015288,2]
[399255503,1766209844265,-156.76422926,0.00015288,2]
[399255504,1766209844274,-151.72084113,0.00015288,2]
[399255505,1766209844283,-152.11986511,0.00015288,2]
[399255506,1766209844292,-150.82546103,0.00015288,2]
[399255507,1766209844302,-152.94375339,0.00015288,2]
[399255508,1766209844311,-151.68546767,0.00015288,2]
[399255509,1766209844320,-155.96693599,0.00015288,2]
[399255510,1766209844328,-152.70737667,0.00015288,2]
[399255511,1766209844338,-498.0,0.0001534,2]
[399255512,1766209844347,-500.0,0.0001534,2]
[399255513,1766209844356,-1054.0,0.0001534,2]
[399255514,1766209844366,-500.0,0.0001534,2]
[399255515,1766209844375,-494.0,0.0001534,2]
[399255516,1766209844383,-729.0,0.0001534,2]
[399255517,1766209844393,-500.0,0.0001534,2]
[399255518,1766209844403,-500.0,0.0001534,2]
[399255519,1766209844415,-500.0,0.0001534,2]
[399255520,1766209844424,-2101.41,0.00015363,2]
[399255521,1766209844433,-200.0,0.00015363,2]
[399255522,1766209844442,-500.0,0.00015363,2]
[399255523,1766209844451,-200.0,0.00015363,2]
[399255524,1766209844459,-900.0,0.00015382,2]
[399255525,1766209844468,-500.0,0.00015416,2]
[399255526,1766209844477,-2000.0,0.00015416,2]
[399255527,1766209844486,-1503.12423045,0.00015416,2]
[399255528,1766209844495,-1501.47727649,0.00015416,2]
[399255529,1766209844504,-2000.0,0.00015416,2]
[399255530,1766209844513,-2002.17420355,0.00015416,2]
[399255531,1766209844523,-498.0,0.00015477,2]
[399255532,1766209844532,-500.0,0.00015477,2]
[399255533,1766209844541,-1054.0,0.00015477,2]
[399255534,1766209844550,-237.68541436,0.00015477,2]
[399255535,1766209844559,-494.0,0.00015477,2]
[399255536,1766209844568,-729.0,0.00015477,2]
[399255537,1766209844577,-500.0,0.00015477,2]
[399255538,1766209844586,-500.0,0.00015477,2]
[399255539,1766209844596,-500.0,0.00015477,2]
[399255540,1766209844605,-268.67,0.00015519,2]
[399255541,1766209844614,-366.77,0.00015581,2]
[399255542,1766209844623,-581.9,0.00015601,2]
[399255543,1766209844633,-498.0,0.00015614,2]
[399255544,1766209844644,-500.0,0.00015614,2]
[399255545,1766209844653,-1054.0,0.00015614,2]
[399255546,1766209844662,-494.0,0.00015614,2]
[399255547,1766209844671,-729.0,0.00015614,2]
[399255548,1766209844680,-500.0,0.00015614,2]
[399255549,1766209844690,-500.0,0.00015614,2]
[399255550,1766209844699,-500.0,0.00015614,2]
[399255551,1766209844709,-150.0,0.00015627,2]
[399255552,1766209844718,-2101.41,0.00015637,2]
[399255553,1766209844728,-30206.05972072,0.00015642,2]
[399255554,1766209844738,-38722.0447607,0.00015664,2]
[399255555,1766209844750,-498.0,0.00015751,2]
[399255556,1766209844761,-500.0,0.00015751,2]
[399255557,1766209844771,-1054.0,0.00015751,2]
[399255558,1766209844781,-494.0,0.00015751,2]
[399255559,1766209844790,-729.0,0.00015751,2]
[399255560,1766209844799,-500.0,0.00015751,2]
[399255561,1766209844809,-500.0,0.00015751,2]
[399255562,1766209844818,-500.0,0.00015751,2]
[399255563,1766209844827,-473.98937354,0.00015793,2]
[399255564,1766209844836,-1600.0,0.00015794,2]
[399255565,1766209844845,-498.0,0.00015888,2]
[399255566,1766209844855,-500.0,0.00015888,2]
[399255567,1766209844864,-1054.0,0.00015888,2]
[399255568,1766209844875,-494.0,0.00015888,2]
[399255569,1766209844887,-729.0,0.00015888,2]
[399255570,1766209844898,-500.0,0.00015888,2]
[399255571,1766209844907,-500.0,0.00015888,2]
[399255572,1766209844916,-500.0,0.00015888,2]
[399255573,1766209844925,-375.3098536,0.000159,2]
[399255574,1766209844934,-375.30985356,0.000159,2]
[399255575,1766209844942,-375.30985356,0.000159,2]
[399255576,1766209844951,-375.30985356,0.000159,2]
[399255577,1766209844961,-375.30985356,0.000159,2]
[399255578,1766209844970,-375.30985356,0.000159,2]
[399255579,1766209844979,-2101.41,0.00015911,2]
[399255580,1766209844988,-200.0,0.00015911,2]
[399255581,1766209844997,-500.0,0.00015911,2]
[399255582,1766209845007,-200.0,0.00015911,2]
[399255583,1766209845016,-2500.0,0.00015964,2]
[399255584,1766209845025,-2500.0,0.00015964,2]
[399255585,1766209845034,-150.0,0.00015967,2]
[399255586,1766209845043,-500.0,0.00015999,2]
[399255587,1766209845053,-498.0,0.00016025,2]
[399255588,1766209845062,-500.0,0.00016025,2]
[399255589,1766209845072,-1054.0,0.00016025,2]
[399255590,1766209845081,-494.0,0.00016025,2]
[399255591,1766209845091,-729.0,0.00016025,2]
[399255592,1766209845100,-500.0,0.00016025,2]
[399255593,1766209845110,-500.0,0.00016025,2]
[399255594,1766209845125,-500.0,0.00016025,2]
[399255595,1766209845135,-1000.0,0.00016137,2]
[399255596,1766209845144,-498.0,0.00016162,2]
[399255597,1766209845154,-1054.0,0.00016162,2]
[399255598,1766209845163,-500.0,0.00016162,2]
[399255599,1766209845172,-494.0,0.00016162,2]
[399255600,1766209845181,-729.0,0.00016162,2]
[399255601,1766209845191,-421.69482467,0.00016162,2]
[399255602,1766209845201,-500.0,0.00016162,2]
[399255603,1766209845211,-500.0,0.00016162,2]
[399255604,1766209845220,-2101.41,0.00016185,2]
[399255605,1766209845229,-30206.05972072,0.00016271,2]
[399255606,1766209845238,-38722.0447607,0.00016282,2]
[399255607,1766209845246,-500.0,0.00016293,2]
[399255608,1766209845255,-498.0,0.00016299,2]
[399255609,1766209845264,-1054.0,0.00016299,2]
[399255610,1766209845273,-500.0,0.00016299,2]
[399255611,1766209845283,-494.0,0.00016299,2]
[399255612,1766209845292,-729.0,0.00016299,2]
[399255613,1766209845302,-641.97799798,0.00016299,2]
[399255614,1766209845311,-500.0,0.00016299,2]
[399255615,1766209845320,-221.90485079,0.000163,2]
[399255616,1766209845329,-500.0,0.000163,2]
[399255617,1766209845339,-500.0,0.000163,2]
[399255618,1766209845347,-500.0,0.000163,2]
[399255619,1766209845357,-500.0,0.000163,2]
[399255620,1766209845366,-500.0,0.000163,2]
[399255621,1766209845375,-162.03877535,0.000163,2]
[399255622,1766209845384,-500.0,0.000163,2]
[399255623,1766209845393,-500.19600128,0.000163,2]
[399255624,1766209845402,-500.4308882,0.000163,2]
[399255625,1766209845411,-500.5161197,0.000163,2]
[399255626,1766209845420,-500.0,0.000163,2]
[399255627,1766209845429,-500.5692733,0.000163,2]
[399255628,1766209845438,-555.87900727,0.000163,2]
[399255629,1766209845447,-330.6916765,0.000163,2]
[399255630,1766209845456,-518.77690272,0.000163,2]
[399255631,1766209845465,-570.20028222,0.000163,2]
[399255632,1766209845474,-500.37407939,0.000163,2]
[399255633,1766209845483,-334.5464899,0.000163,2]
[399255634,1766209845492,-500.0,0.000163,2]
[399255635,1766209845501,-452.09330567,0.000163,2]
[399255636,1766209845510,-500.0,0.000163,2]
[399255637,1766209845519,-177.2862913,0.000163,2]
[399255638,1766209845527,-500.44010865,0.000163,2]
[399255639,1766209845536,-500.29716194,0.000163,2]
[399255640,1766209845546,-162.35722153,0.000163,2]
[399255641,1766209845554,-500.0,0.000163,2]
[399255642,1766209845563,-500.34670783,0.000163,2]
[399255643,1766209845572,-500.0,0.000163,2]
[399255644,1766209845581,-333.44713486,0.000163,2]
[399255645,1766209845590,-500.0,0.000163,2]
[399255646,1766209845599,-500.0,0.000163,2]
[399255647,1766209845607,-500.21661931,0.000163,2]
[399255648,1766209845616,-590.13268338,0.000163,2]
[399255649,1766209845625,-500.0,0.000163,2]
[399255650,1766209845634,-500.0,0.000163,2]
[399255651,1766209845643,-500.33069287,0.000163,2]
[399255652,1766209845652,-500.0,0.000163,2]
[399255653,1766209845661,-500.0,0.000163,2]
[399255654,1766209845670,-500.0,0.000163,2]
[399255655,1766209845679,-500.30081252,0.000163,2]
[399255656,1766209845688,-500.0,0.000163,2]
[399255657,1766209845696,-168.09419939,0.000163,2]
[399255658,1766209845705,-500.0,0.000163,2]
[399255659,1766209845715,-426.51211002,0.000163,2]
[399255660,1766209845723,-500.0,0.000163,2]
[399255661,1766209845732,-500.34860131,0.000163,2]
[399255662,1766209845741,-500.30832876,0.000163,2]
[399255663,1766209845750,-344.64845159,0.000163,2]
[399255664,1766209845759,-162.24077786,0.000163,2]
[399255665,1766209845768,-500.0,0.000163,2]
[399255666,1766209845777,-500.59670517,0.000163,2]
[399255667,1766209845786,-500.48687625,0.000163,2]
[399255668,1766209845795,-500.0,0.000163,2]
[399255669,1766209845803,-500.0,0.000163,2]
[399255670,1766209845812,-500.0,0.000163,2]
[399255671,1766209845822,-161.07996631,0.000163,2]
[399255672,1766209845831,-500.0,0.000163,2]
[399255673,1766209845840,-468.55909228,0.000163,2]
[399255674,1766209845849,-577.20648211,0.000163,2]
[399255675,1766209845861,-543.08632529,0.000163,2]
[399255676,1766209845871,-523.00588269,0.000163,2]
[399255677,1766209845881,-500.0,0.000163,2]
[399255678,1766209845890,-500.0,0.000163,2]
[399255679,1766209845900,-500.0,0.000163,2]
[399255680,1766209845910,-500.16141079,0.000163,2]
[399255681,1766209845920,-500.0,0.000163,2]
[399255682,1766209845930,-159.43095819,0.000163,2]
[399255683,1766209845941,-500.0,0.000163,2]
[399255684,1766209845951,-516.37835686,0.000163,2]
[399255685,1766209845961,-500.0,0.000163,2]
[399255686,1766209845970,-166.91561833,0.000163,2]
[399255687,1766209845980,-500.0,0.000163,2]
[399255688,1766209845988,-220.27121476,0.000163,2]
[399255689,1766209845997,-500.0,0.000163,2]
[399255690,1766209846006,-168.56959317,0.000163,2]
[399255691,1766209846016,-500.0,0.000163,2]
[399255692,1766209846026,-529.96646376,0.000163,2]
[399255693,1766209846035,-500.0,0.000163,2]
[399255694,1766209846045,-500.0,0.000163,2]
[399255695,1766209846054,-500.0,0.000163,2]
[399255696,1766209846063,-502.0,0.00016301,2]
[399255697,1766209846072,-150.0,0.00016307,2]